bitfinex-derivatives/quotes_SOLF0:USTF0_20241226
["timestamp","ask_amount","ask_price","bid_price","bid_amount"]
[1735247165450,2.6629,187.98,187.92,6.1436]
[1735247165844,2.6629,187.98,187.92,3.48]
[1735247166145,2.6629,187.98,187.93,2.6636]
[1735247166441,2.2627,188.03,187.92,3.48]
[1735247166644,2.2627,188.03,187.93,12.15781928]
[1735247166845,2.6624,188.02,187.93,14.43011928]
[1735247167145,2.2627,188.03,187.93,14.43011928]
[1735247167549,2.6623,188.02,187.96,2.6632]
[1735247167742,2.2627,188.03,187.93,14.43011928]
[1735247168847,2.6625,188.01,187.96,2.6631]
[1735247170151,2.2627,188.03,187.93,12.15781928]
[1735247170652,2.6627,188.0,187.93,12.15781928]
[1735247170854,3.48,188.08,187.93,12.15781928]
[1735247171048,12.23651928,188.09,187.94,4.5952]
[1735247171646,12.23651928,188.09,187.96,9.88441928]
[1735247171954,12.23651928,188.09,187.97,3.48]
[1735247172454,2.6617,188.06,187.97,3.48]
[1735247173154,12.23651928,188.09,187.97,3.48]
[1735247173453,2.6616,188.07,187.97,3.48]
[1735247173854,12.23651928,188.09,188.01,2.6623]
[1735247174055,12.23651928,188.09,187.97,3.48]
[1735247174446,2.6619,188.05,187.97,3.48]
[1735247174649,12.23651928,188.09,187.97,3.48]
[1735247175751,2.6619,188.05,188.01,2.6623]
[1735247176656,9.88441928,188.06,187.95,3.48]
[1735247176855,2.3521,188.09,187.95,3.48]
[1735247177158,2.3521,188.09,188.02,2.6622]
[1735247177853,2.3521,188.09,188.0,3.48]
[1735247178058,9.88441928,188.08,188.0,3.48]
[1735247178458,2.6622,188.03,188.0,3.48]
[1735247178660,9.88441928,188.05,187.94,4.5952]
[1735247178849,9.88441928,188.05,187.95,3.42]
[1735247179161,2.6623,188.02,187.96,2.663]
[1735247179360,9.88441928,188.05,187.96,2.663]
[1735247179759,2.6625,188.01,187.96,2.663]
[1735247180061,9.88441928,188.05,187.96,2.663]
[1735247180761,2.6629,187.98,187.94,2.6634]
[1735247181667,9.88441928,187.99,187.9,3.42]
[1735247181865,9.88441928,187.99,187.89,3.42]
[1735247182057,9.88441928,187.99,187.89,2.6641]
[1735247182658,9.88441928,187.96,187.87,2.6643]
[1735247182855,3.42,187.98,187.86,3.42]
[1735247183058,9.88441928,187.93,187.86,3.42]
[1735247183762,2.664,187.9,187.86,3.42]
[1735247184360,2.6637,187.93,187.89,2.6641]
[1735247184560,3.42,187.98,187.86,3.42]
[1735247184960,2.6634,187.95,187.89,2.664]
[1735247185661,3.42,187.98,187.89,2.664]
[1735247186161,2.6637,187.93,187.87,2.6643]
[1735247186361,2.6637,187.93,187.86,3.42]
[1735247186762,2.6637,187.93,187.88,2.6642]
[1735247187469,2.6639,187.91,187.86,2.6644]
[1735247188162,9.88441928,187.96,187.86,2.6644]
[1735247188369,2.664,187.9,187.86,2.6644]
[1735247191567,3.3518,187.94,187.83,3.1251]
[1735247191765,2.6644,187.88,187.84,2.6648]
[1735247192271,2.6644,187.88,187.85,2.6647]
[1735247193173,3.3409,187.93,187.82,3.42]
[1735247193478,3.42,187.98,187.83,9.88441928]
[1735247193767,2.6634,187.95,187.88,2.6642]
[1735247193963,2.6634,187.95,187.87,3.42]
[1735247194368,13.30441928,187.99,187.87,3.42]
[1735247195071,9.88441928,187.96,187.87,3.42]
[1735247195371,9.88441928,187.93,187.84,3.1182]
[1735247195568,9.88441928,187.93,187.82,3.42]
[1735247195771,3.2775,187.92,187.82,3.42]
[1735247195967,2.6643,187.88,187.84,2.6648]
[1735247197271,2.6639,187.89,187.8,9.88441928]
[1735247197467,3.2775,187.92,187.81,3.42]
[1735247198265,2.664,187.89,187.84,2.6645]
[1735247198471,3.2775,187.92,187.84,2.6645]
[1735247198669,3.2775,187.92,187.81,3.42]
[1735247198874,2.6642,187.87,187.83,2.6646]
[1735247199071,3.2775,187.92,187.83,2.6646]
[1735247199474,9.88441928,187.9,187.79,3.2674]
[1735247199670,13.30441928,187.9,187.79,3.2674]
[1735247200175,2.6646,187.85,187.8,2.6651]
[1735247200778,2.6646,187.84,187.8,2.6651]
[1735247201477,13.30441928,187.9,187.81,2.665]
[1735247201776,2.6645,187.85,187.81,2.665]
[1735247202973,9.88441928,187.9,187.77,3.42]
[1735247203171,6.6975,187.92,187.79,9.88441928]
[1735247203676,9.3611,187.92,187.88,2.6639]
[1735247203980,5.9411,187.92,187.82,13.30441928]
[1735247204275,5.9411,187.92,187.89,2.6638]
[1735247204477,2.6638,187.9,187.82,13.30441928]
[1735247204679,3.2775,187.92,187.82,13.30441928]
[1735247205767,2.6639,187.89,187.86,2.6643]
[1735247205975,3.2775,187.92,187.86,2.6643]
[1735247207275,2.664,187.89,187.84,2.6645]
[1735247207481,13.30441928,187.9,187.77,3.42]
[1735247207877,2.6648,187.83,187.79,2.6653]
[1735247208281,2.6648,187.83,187.77,3.42]
[1735247208488,2.6648,187.83,187.76,9.7664]
[1735247208785,2.6648,187.83,187.76,6.3864]
[1735247209180,2.6648,187.83,187.79,2.6652]
[1735247214480,2.6646,187.84,187.79,2.6653]
[1735247215781,2.6648,187.83,187.79,2.6653]
[1735247223691,2.6645,187.85,187.82,2.6649]
[1735247223893,6.34267493,187.89,187.8,6.34267493]
[1735247224091,6.34267493,187.89,187.82,6.34267493]
[1735247224286,6.34267493,187.91,187.84,6.34267493]
[1735247224486,3.3044,187.95,187.88,6.34267493]
[1735247224794,6.34267493,187.97,187.9,6.34267493]
[1735247225090,2.663,187.95,187.91,2.6636]
[1735247225495,2.6629,187.96,187.92,2.6634]
[1735247226992,2.6626,187.98,187.93,2.6633]
[1735247227691,2.6628,187.97,187.92,2.6634]
[1735247228092,9.89875287,187.97,187.87,9.3812]
[1735247228291,9.89875287,187.97,187.83,9.89875287]
[1735247228292,9.89875287,187.94,187.81,29.4224801]
[1735247228596,9.89875287,187.94,187.82,3.38]
[1735247228795,9.89875287,187.94,187.84,2.6645]
[1735247228796,2.664,187.89,187.84,2.6645]
[1735247229395,2.664,187.89,187.85,2.6644]
[1735247232694,9.89875287,187.91,187.81,3.3273]
[1735247232900,9.89875287,187.91,187.81,6.7073]
[1735247233299,9.89875287,187.91,187.81,3.38]
[1735247233994,2.664,187.88,187.82,2.6649]
[1735247234299,9.89875287,187.91,187.82,2.6649]
[1735247234500,2.6646,187.84,187.8,2.6651]
[1735247234799,9.89875287,187.88,187.78,3.38]
[1735247234997,2.6648,187.83,187.79,2.6653]
[1735247236200,2.6646,187.84,187.8,2.6651]
[1735247236402,13.27875287,187.88,187.78,3.38]
[1735247237397,2.6646,187.85,187.81,2.665]
[1735247237604,2.6646,187.85,187.78,3.38]
[1735247237900,13.27875287,187.88,187.78,3.38]
[1735247239405,13.27875287,187.88,187.8,2.6651]
[1735247240006,2.6646,187.85,187.8,2.6651]
[1735247240402,13.27875287,187.88,187.8,2.6651]
[1735247240608,13.27875287,187.88,187.78,3.38]
[1735247240609,13.25875287,187.91,187.83,2.6647]
[1735247241313,13.25875287,187.91,187.78,13.27875287]
[1735247241608,13.25875287,187.91,187.78,3.38]
[1735247241913,13.25875287,187.91,187.8,2.6651]
[1735247242102,13.25875287,187.91,187.78,3.38]
[1735247242302,9.6934,187.92,187.78,13.27875287]
[1735247243204,9.62108233,187.96,187.81,9.89875287]
[1735247243205,22.8798352,187.96,187.81,9.89875287]
[1735247243409,2.6635,187.92,187.82,6.3507]
[1735247243611,2.6635,187.92,187.83,6.5692]
[1735247243807,2.6639,187.89,187.86,2.6642]
[1735247244016,13.25875287,187.96,187.83,6.5692]
[1735247244712,2.6636,187.92,187.88,2.664]
[1735247245119,13.25875287,187.96,187.88,2.664]
[1735247245412,2.6636,187.91,187.88,2.664]
[1735247245612,13.25875287,187.96,187.86,2.6642]
[1735247246009,2.6641,187.88,187.83,6.5692]
[1735247246616,2.6641,187.88,187.84,2.6645]
[1735247247416,2.6641,187.88,187.85,2.6644]
[1735247247720,9.89875287,187.93,187.82,9.7107]
[1735247248011,3.1353,187.92,187.82,3.2629]
[1735247248212,2.6647,187.84,187.79,3.36]
[1735247249519,2.6647,187.84,187.8,2.665]
[1735247249718,2.6648,187.83,187.8,2.665]
[1735247251514,2.6649,187.82,187.79,6.0253]
[1735247251817,9.89875287,187.83,187.74,3.36]
[1735247252014,2.6653,187.79,187.75,2.6657]
[1735247252410,9.89875287,187.83,187.7,9.5711]
[1735247252614,9.89875287,187.83,187.71,3.36]
[1735247252822,2.6656,187.77,187.71,3.36]
[1735247253318,2.6656,187.77,187.73,2.666]
[1735247253510,2.6657,187.76,187.73,2.666]
[1735247254220,2.6657,187.76,187.7,12.9311]
[1735247254513,2.6657,187.76,187.72,2.6663]
[1735247254820,2.666,187.74,187.69,3.36]
[1735247255019,2.666,187.74,187.68,3.36]
[1735247255421,2.666,187.74,187.7,2.6666]
[1735247256714,2.666,187.74,187.68,3.36]
[1735247257631,2.666,187.74,187.64,9.475]
[1735247257915,2.666,187.74,187.69,2.6666]
[1735247259819,9.89875287,187.77,187.69,2.6666]
[1735247260013,9.89875287,187.77,187.66,3.36]
[1735247260218,3.36,187.8,187.66,3.36]
[1735247260422,9.89875287,187.78,187.66,3.36]
[1735247260622,9.89875287,187.78,187.69,2.6667]
[1735247260821,9.89875287,187.78,187.66,3.36]
[1735247261321,2.6664,187.72,187.67,2.6669]
[1735247261521,13.27875287,187.75,187.67,2.6669]
[1735247261823,9.7111,187.74,187.63,3.38]
[1735247262018,2.6666,187.7,187.66,2.667]
[1735247262619,19.60985287,187.74,187.63,3.38]
[1735247263616,19.60985287,187.74,187.61,9.89875287]
[1735247264418,2.6666,187.7,187.66,2.667]
[1735247264626,19.60985287,187.74,187.61,9.89875287]
[1735247265124,2.6664,187.72,187.64,2.6673]
[1735247265323,2.6664,187.72,187.61,9.89875287]
[1735247265723,2.6662,187.73,187.61,9.89875287]
[1735247266124,9.89875287,187.74,187.61,9.89875287]
[1735247266327,2.6663,187.72,187.68,2.6667]
[1735247266522,9.89875287,187.74,187.61,9.89875287]
[1735247266825,2.6665,187.71,187.67,2.667]
[1735247267420,2.6663,187.73,187.61,9.89875287]
[1735247267732,9.89875287,187.74,187.61,9.89875287]
[1735247267922,9.89875287,187.77,187.7,2.6665]
[1735247268128,2.666,187.74,187.7,2.6665]
[1735247268327,9.89875287,187.77,187.67,3.34]
[1735247268630,2.6659,187.75,187.71,2.6664]
[1735247270034,9.89875287,187.77,187.67,3.34]
[1735247270226,9.89875287,187.77,187.66,9.5728]
[1735247270736,9.89875287,187.74,187.67,2.667]
[1735247270921,9.89875287,187.74,187.61,9.89875287]
[1735247271126,13.23875287,187.74,187.62,3.34]
[1735247271327,13.23875287,187.74,187.65,2.6672]
[1735247271933,2.6667,187.7,187.62,3.34]
[1735247272133,2.6667,187.7,187.66,2.6671]
[1735247273037,13.23875287,187.74,187.66,2.6671]
[1735247273230,2.6667,187.69,187.65,2.6672]
[1735247273731,2.6667,187.69,187.62,3.34]
[1735247273931,2.6667,187.69,187.66,2.6671]
[1735247274229,13.23875287,187.74,187.62,3.34]
[1735247274430,3.34,187.74,187.62,3.34]
[1735247275031,3.34,187.74,187.69,2.6666]
[1735247276534,2.6664,187.72,187.69,2.6666]
[1735247278941,2.6664,187.72,187.68,2.6668]
[1735247279237,2.6666,187.7,187.62,3.34]
[1735247279631,2.6666,187.7,187.66,2.667]
[1735247279833,9.89875287,187.74,187.62,3.34]
[1735247280031,2.6664,187.72,187.68,2.6668]
[1735247280233,9.89875287,187.74,187.62,3.34]
[1735247280537,2.6666,187.7,187.66,2.667]
[1735247280929,2.6666,187.7,187.62,3.34]
[1735247282138,2.6666,187.7,187.67,2.6669]
[1735247283042,6.35170792,187.72,187.64,6.35170792]
[1735247283043,2.6665,187.71,187.68,2.6668]
[1735247284131,6.35170792,187.72,187.64,6.35170792]
[1735247284437,6.35170792,187.72,187.66,2.667]
[1735247284838,2.6668,187.69,187.66,2.667]
[1735247285042,6.35170792,187.68,187.65,2.6672]
[1735247285431,6.35170792,187.68,187.61,6.35170792]
[1735247285643,3.34,187.71,187.65,2.6672]
[1735247285840,6.35170792,187.7,187.62,6.35170792]
[1735247286143,9.7612,187.79,187.69,2.6666]
[1735247286144,2.6663,187.72,187.69,2.6666]
[1735247287139,6.35170792,187.71,187.61,3.34]
[1735247287443,6.35170792,187.69,187.62,6.35170792]
[1735247287643,6.35170792,187.69,187.64,2.6674]
[1735247287944,6.35170792,187.67,187.64,2.6674]
[1735247288145,6.35170792,187.67,187.63,2.6675]
[1735247288146,2.6672,187.66,187.63,2.6675]
[1735247288347,6.35170792,187.67,187.61,32.7624801]
[1735247288540,6.35170792,187.69,187.62,6.35170792]
[1735247288741,2.6668,187.69,187.64,2.6673]
[1735247289046,6.35170792,187.71,187.62,6.35170792]
[1735247289341,6.35170792,187.67,187.58,9.6856]
[1735247289545,6.35170792,187.67,187.59,9.69170792]
[1735247289747,3.34,187.7,187.59,9.69170792]
[1735247289748,6.35170792,187.65,187.59,3.34]
[1735247289945,6.35170792,187.65,187.59,10.69562002]
[1735247290148,6.35170792,187.67,187.59,17.04732794]
[1735247290843,2.6674,187.65,187.61,2.6678]
[1735247291044,6.35170792,187.63,187.55,7.35562002]
[1735247291749,6.35170792,187.61,187.55,7.35562002]
[1735247292048,2.6677,187.62,187.57,2.6683]
[1735247292238,6.35170792,187.62,187.57,2.6683]
[1735247293841,6.35170792,187.62,187.53,6.35170792]
[1735247294040,2.6681,187.6,187.55,6.35170792]
[1735247294241,13.27459863,187.65,187.52,9.7782]
[1735247294445,13.27459863,187.65,187.54,9.93459863]
[1735247294742,2.6677,187.63,187.54,9.93459863]
[1735247294935,13.27459863,187.65,187.58,2.6682]
[1735247295245,2.6676,187.63,187.52,9.7782]
[1735247295446,2.6676,187.63,187.54,9.93459863]
[1735247295847,2.6676,187.63,187.59,2.6681]
[1735247296348,2.6677,187.62,187.59,2.6681]
[1735247296743,2.6677,187.62,187.58,2.6683]
[1735247297447,13.27459863,187.65,187.56,2.6684]
[1735247298049,13.27459863,187.65,187.52,9.7782]
[1735247298247,2.668,187.61,187.57,2.6684]
[1735247299347,13.27459863,187.65,187.52,9.7782]
[1735247299547,2.6681,187.6,187.55,2.6686]
[1735247299847,13.27459863,187.65,187.52,9.7782]
[1735247300749,13.12949863,187.68,187.54,9.93459863]
[1735247301754,6.3646,187.69,187.52,9.7782]
[1735247301755,3.1375,187.69,187.57,9.93459863]
[1735247301940,2.6669,187.68,187.64,2.6673]
[1735247302140,3.1375,187.69,187.58,6.4125]
[1735247302346,3.3,187.73,187.6,9.93459863]
[1735247302546,3.3,187.73,187.61,3.0829]
[1735247302939,2.6667,187.7,187.61,3.0829]
[1735247303145,3.3,187.73,187.61,6.3751]
[1735247303546,2.6667,187.69,187.61,6.3751]
[1735247303944,3.3,187.73,187.61,6.3751]
[1735247304144,2.6666,187.71,187.61,6.3751]
[1735247304447,3.3,187.73,187.61,6.3751]
[1735247305252,2.6666,187.7,187.66,2.667]
[1735247307054,2.667,187.68,187.64,2.6674]
[1735247307249,9.93459863,187.71,187.64,2.6674]
[1735247307443,9.93459863,187.68,187.59,3.3]
[1735247307849,2.6673,187.66,187.62,2.6676]
[1735247308049,9.93459863,187.68,187.58,3.1125]
[1735247308347,2.6673,187.65,187.61,2.6678]
[1735247308653,13.23459863,187.68,187.58,3.1125]
[1735247309045,2.6675,187.64,187.6,2.668]
[1735247309548,2.6678,187.62,187.58,2.6683]
[1735247309746,9.93459863,187.65,187.58,2.6683]
[1735247309950,9.93459863,187.65,187.55,6.6539]
[1735247310150,2.6681,187.6,187.56,2.6686]
[1735247310547,9.93459863,187.62,187.52,3.3]
[1735247310753,2.6683,187.59,187.54,2.6687]
[1735247311552,2.6683,187.59,187.55,2.6687]
[1735247312862,2.6681,187.6,187.55,2.6686]
[1735247313154,9.93459863,187.62,187.55,2.6686]
[1735247313763,2.6682,187.59,187.55,2.6686]
[1735247314259,2.6682,187.59,187.56,2.6685]
[1735247315055,2.668,187.6,187.56,2.6685]
[1735247316160,9.02746703,187.6,187.56,2.6685]
[1735247317362,2.6682,187.59,187.56,2.6685]
[1735247321269,2.6682,187.59,187.55,2.6687]
[1735247324966,2.6682,187.59,187.54,6.35946703]
[1735247324967,9.5139,187.67,187.56,6.35946703]
[1735247325272,6.35946703,187.63,187.56,6.35946703]
[1735247325471,6.35946703,187.63,187.6,2.6679]
[1735247325771,2.6672,187.66,187.6,6.35946703]
[1735247325966,6.35946703,187.67,187.64,2.6674]
[1735247326165,6.35946703,187.67,187.6,6.35946703]
[1735247326367,6.4873,187.72,187.58,9.487]
[1735247326368,6.35946703,187.69,187.64,6.35946703]
[1735247326670,6.35946703,187.69,187.66,2.667]
[1735247328072,6.35946703,187.72,187.69,2.6667]
[1735247331071,9.7764,187.77,187.66,6.35946703]
[1735247331272,9.7764,187.77,187.68,6.35946703]
[1735247331476,9.7764,187.77,187.68,9.65946703]
[1735247331477,6.35946703,187.76,187.68,9.65946703]
[1735247331671,9.02526703,187.76,187.7,2.6665]
[1735247331871,6.35946703,187.76,187.68,9.65946703]
[1735247332374,2.6659,187.75,187.71,2.6664]
[1735247334778,6.35946703,187.77,187.73,2.6661]
[1735247336478,9.02506703,187.77,187.73,2.6661]
[1735247336879,3.3,187.82,187.72,6.35946703]
[1735247337080,6.35946703,187.79,187.72,6.35946703]
[1735247337578,6.35946703,187.79,187.7,3.2329]
[1735247337579,6.35946703,187.79,187.74,2.6659]
[1735247337981,9.9176,187.83,187.7,9.59236703]
[1735247337982,6.35946703,187.77,187.72,2.6663]
[1735247339583,2.6657,187.76,187.72,2.6663]
[1735247341183,2.6661,187.74,187.69,3.3079]
[1735247341879,2.6661,187.74,187.7,2.6665]
[1735247342276,2.6662,187.73,187.7,2.6665]
[1735247342481,6.35946703,187.75,187.69,5.9746]
[1735247342783,6.35946703,187.73,187.66,3.3]
[1735247342978,2.6665,187.71,187.67,2.6669]
[1735247343179,6.35946703,187.75,187.67,6.35946703]
[1735247343375,2.6656,187.77,187.74,2.666]
[1735247343779,2.6656,187.77,187.7,3.3]
[1735247344174,2.6656,187.77,187.73,2.6661]
[1735247344375,2.6657,187.76,187.73,2.6661]
[1735247344583,9.02516703,187.76,187.73,2.6661]
[1735247344786,6.35946703,187.76,187.7,3.3]
[1735247344976,9.02546703,187.74,187.7,3.3]
[1735247345384,9.02546703,187.74,187.7,5.9665]
[1735247345686,6.35946703,187.72,187.67,6.5945]
[1735247345985,6.35946703,187.72,187.68,2.6667]
[1735247346185,9.02586703,187.72,187.67,6.5945]
[1735247346387,2.6664,187.72,187.67,6.5945]
[1735247347281,6.6176,187.83,187.69,9.02606703]
[1735247347487,6.35946703,187.82,187.75,6.35946703]
[1735247347786,6.35946703,187.82,187.75,9.65946703]
[1735247348086,9.02446703,187.82,187.78,2.6653]
[1735247348283,9.02446703,187.82,187.75,9.65946703]
[1735247348692,9.02446703,187.82,187.77,2.6656]
[1735247348986,9.02446703,187.82,187.75,9.65946703]
[1735247349388,6.35946703,187.82,187.75,9.65946703]
[1735247349589,2.6652,187.8,187.75,9.65946703]
[1735247349783,6.35946703,187.8,187.75,3.3]
[1735247349983,9.02466703,187.8,187.75,3.3]
[1735247350183,6.35946703,187.82,187.75,3.3]
[1735247350586,9.02436703,187.82,187.78,2.6654]
[1735247351186,9.02436703,187.82,187.79,2.6652]
[1735247351984,3.299,187.88,187.78,6.35946703]
[1735247352189,6.35946703,187.86,187.78,6.35946703]
[1735247352483,3.299,187.88,187.8,6.35946703]
[1735247352484,6.35946703,187.88,187.8,6.35946703]
[1735247352684,6.35946703,187.88,187.82,2.6648]
[1735247352883,6.35946703,187.88,187.8,9.65946703]
[1735247353689,6.35946703,187.86,187.83,2.6646]
[1735247353886,6.35946703,187.84,187.8,3.3]
[1735247354389,2.6646,187.84,187.8,3.3]
[1735247354890,2.6648,187.83,187.8,3.3]
[1735247355392,9.91092592,187.87,187.8,3.3]
[1735247356290,2.6645,187.85,187.82,2.6648]
[1735247356491,2.6645,187.85,187.8,3.3]
[1735247356992,2.6642,187.87,187.8,3.3]
[1735247357190,16.44942592,187.9,187.8,3.3]
[1735247358792,16.44942592,187.9,187.83,2.6647]
[1735247359092,16.44942592,187.9,187.8,3.3]
[1735247359491,2.6642,187.87,187.83,2.6646]
[1735247360189,2.6641,187.88,187.84,2.6646]
[1735247360492,9.91092592,187.9,187.8,3.3]
[1735247360996,2.6642,187.87,187.83,2.6647]
[1735247361184,9.91092592,187.87,187.76,9.6353]
[1735247361390,9.91092592,187.87,187.78,3.3]
[1735247361696,2.6642,187.87,187.83,2.6646]
[1735247362194,2.6642,187.87,187.84,2.6646]
[1735247362387,9.91092592,187.9,187.78,3.3]
[1735247362583,9.91092592,187.93,187.88,2.6639]
[1735247362990,2.6637,187.91,187.84,3.3]
[1735247363498,2.6637,187.91,187.87,2.6642]
[1735247363986,2.6637,187.91,187.86,2.6643]
[1735247364184,2.6637,187.91,187.84,3.3]
[1735247364389,2.6635,187.92,187.84,3.3]
[1735247364789,2.6635,187.92,187.88,2.6639]
[1735247367195,9.91092592,187.93,187.88,2.6639]
[1735247367196,2.6636,187.91,187.88,2.6639]
[1735247368095,2.6635,187.92,187.89,2.6638]
[1735247368489,6.2892,187.95,187.84,3.3]
[1735247368697,2.6633,187.94,187.9,2.6636]
[1735247368991,9.91092592,187.96,187.85,13.09432592]
[1735247369196,12.57382592,187.96,187.89,2.6639]
[1735247369399,9.91092592,187.96,187.89,3.3]
[1735247369899,2.6631,187.95,187.91,2.6636]
[1735247370596,9.91092592,187.96,187.89,5.9638]
[1735247370597,2.6633,187.93,187.89,5.9638]
[1735247374103,9.91092592,187.96,187.89,3.3]
[1735247374403,6.33631494,187.94,187.91,2.6635]
[1735247375300,6.33631494,187.94,187.83,3.2765]
[1735247375301,6.33631494,187.92,187.79,7.35562002]
[1735247375604,6.33631494,187.85,187.79,10.65562002]
[1735247376501,6.33631494,187.85,187.83,2.6646]
[1735247376696,6.33631494,187.85,187.78,3.1999]
[1735247376906,6.33631494,187.83,187.78,6.4999]
[1735247377209,9.00111494,187.83,187.79,2.6653]
[1735247377402,6.33631494,187.83,187.78,3.1999]
[1735247377603,6.33631494,187.81,187.76,3.3]
[1735247378307,9.91408821,187.84,187.77,2.6655]
[1735247378903,2.665,187.82,187.77,2.6655]
[1735247381709,2.665,187.81,187.77,2.6655]
[1735247384115,3.3,187.89,187.75,6.5193]
[1735247384412,9.91408821,187.9,187.75,6.5193]
[1735247384612,2.6642,187.87,187.83,2.6646]
[1735247385506,9.91408821,187.9,187.83,2.6646]
[1735247385711,2.6643,187.86,187.82,2.6648]
[1735247386812,2.6643,187.86,187.83,2.6647]
[1735247388016,2.6642,187.87,187.83,2.6647]
[1735247388816,2.6645,187.85,187.81,2.6649]
[1735247393513,2.6647,187.84,187.8,2.6651]
[1735247393713,9.91408821,187.87,187.8,2.6651]
[1735247394115,2.6645,187.85,187.8,2.6651]
[1735247394315,9.91408821,187.87,187.8,2.6651]
[1735247394514,9.91408821,187.87,187.81,2.665]
[1735247395819,2.6646,187.85,187.81,2.665]
[1735247396422,2.6646,187.84,187.81,2.665]
[1735247396621,9.91408821,187.87,187.79,2.6652]
[1735247397120,9.91408821,187.84,187.78,6.0453]
[1735247398121,2.665,187.82,187.78,6.0453]
[1735247399118,9.91408821,187.84,187.78,6.0453]
[1735247399322,2.665,187.81,187.78,3.38]
[1735247399522,2.665,187.81,187.77,2.6655]
[1735247400121,6.34707811,187.78,187.76,2.6657]
[1735247400625,6.34707811,187.78,187.73,3.2608]
[1735247400927,6.34707811,187.78,187.76,2.6657]
[1735247403425,6.666,187.86,187.73,9.60787811]
[1735247403630,6.34707811,187.81,187.73,9.60787811]
[1735247403929,9.01207811,187.81,187.78,2.6654]
[1735247404624,6.34707811,187.79,187.76,2.6656]
[1735247405029,6.34707811,187.77,187.73,3.2608]
[1735247405826,6.34707811,187.77,187.74,2.666]
[1735247407027,9.01307811,187.75,187.71,2.6663]
[1735247407228,6.34707811,187.72,187.66,3.38]
[1735247407527,6.34707811,187.7,187.66,3.38]
[1735247408130,2.6663,187.72,187.66,3.38]
[1735247408421,9.92508146,187.73,187.69,2.6667]
[1735247408422,12.59128146,187.73,187.69,2.6667]
[1735247409227,9.92508146,187.73,187.66,3.38]
[1735247409428,2.6664,187.71,187.68,2.6668]
[1735247409931,2.6667,187.7,187.66,2.6671]
[1735247410133,12.59178146,187.7,187.66,2.6671]
[1735247410931,9.92508146,187.7,187.64,2.6673]
[1735247411335,2.6669,187.68,187.63,2.6675]
[1735247411528,3.38,187.72,187.57,3.2388]
[1735247411529,9.92508146,187.67,187.57,3.2388]
[1735247411729,9.92508146,187.67,187.58,3.38]
[1735247412132,2.6672,187.66,187.61,2.6677]
[1735247412336,3.1922,187.69,187.57,3.2388]
[1735247412337,9.92508146,187.64,187.57,3.38]
[1735247412828,9.92508146,187.64,187.56,3.1105]
[1735247413030,9.92508146,187.61,187.53,6.7208]
[1735247413536,2.668,187.6,187.55,2.6687]
[1735247414332,2.6683,187.59,187.53,9.3897]
[1735247414526,2.6683,187.59,187.51,3.1105]
[1735247414732,2.6683,187.59,187.51,6.4905]
[1735247415437,2.6683,187.59,187.54,2.6688]
[1735247415626,2.6683,187.59,187.51,6.4905]
[1735247415627,12.59338146,187.58,187.51,3.1105]
[1735247415832,9.92508146,187.58,187.51,3.1105]
[1735247416237,9.92508146,187.55,187.48,3.1838]
[1735247416729,2.669,187.54,187.49,2.6695]
[1735247416932,9.92508146,187.55,187.47,3.38]
[1735247417633,9.92508146,187.55,187.47,6.0498]
[1735247417937,9.92508146,187.52,187.43,3.1838]
[1735247418139,2.6697,187.48,187.43,2.6703]
[1735247418332,9.92508146,187.52,187.41,9.9151]
[1735247419138,2.6694,187.51,187.45,2.67]
[1735247419834,9.92508146,187.52,187.45,2.67]
[1735247420041,9.92508146,187.49,187.41,3.1801]
[1735247420440,2.67,187.46,187.39,3.36]
[1735247420642,9.92508146,187.46,187.39,3.36]
[1735247420834,9.92508146,187.43,187.35,58.7597]
[1735247421135,9.92508146,187.43,187.36,3.36]